[Event "17th Delhi GM Open 2019"]
[Site "Delhi"]
[Date "2019.01.10"]
[Round "3"]
[White "Mitrabha, Guha"]
[Black "Ghosh, Diptayan"]
[Result "0-1"]
[ECO "E15"]
[WhiteElo "2371"]
[BlackElo "2544"]
[Annotator "ChessBase"]
[PlyCount "94"]
[EventDate "2019.01.09"]
[EventType "swiss"]
[EventCountry "IND"]
[SourceTitle "playchess.com"]
[Source "ChessBase"]
[SourceQuality "1"]
[TimeControl "5400+30"]

1. d4 {[%emt 0:00:00]} Nf6 {[%emt 0:00:00]} 2. Nf3 {[%emt 0:00:00]} e6 {[%emt 0:00:01]} 3. c4 {[%emt 0:00:00]} b6 {[%emt 0:00:04]} 4. g3 {[%emt 0:00:00]} Ba6 {[%emt 0:00:06]} 5. b3 {[%emt 0:00:00]} d5 {[%emt 0:00:03]} 6. cxd5 {[%emt 0:00:00]} exd5 {[%emt 0:00:03]} 7. Bg2 {[%emt 0:00:02]} Bb4+ {[%emt 0:00:03]} 8. Bd2 {[%emt 0:00:05]} Be7 {[%emt 0:00:03]} 9. Nc3 {[%emt 0:00:05]} O-O {[%emt 0:00:06]} 10. O-O {[%emt 0:00:04]} Re8 {[%emt 0:00:03]} 11. Qc2 {[%emt 0:00:33]} c5 {[%emt 0:00:29]} 12. Rfd1 {[%emt 0:02:13]} Nc6 {[%emt 0:02:21]} 13. Bf4 {[%emt 0:07:37]} Rc8 {[%emt 0:09:11]} 14. Bh3 {[%emt 0:05:13]} Nxd4 {[%emt 0:13:31]} 15. Nxd4 {[%emt 0:00:42]} cxd4 {[%emt 0:00:04]} 16. Bxc8 {[%emt 0:00:52]} Qxc8 {[%emt 0:00:03]} 17. Rxd4 {[%emt 0:00:55]} Bc5 {[%emt 0:00:04]} 18. Qd2 {[%emt 0:13:11]} Qh3 {[%emt 0:04:28]} 19. f3 {[%emt 0:32:10]} Bxe2 {[%emt 0:01:14]} 20. Re1 {[%emt 0:00:19]} Bxf3 {[%emt 0:01:05]} 21. Rxe8+ {[%emt 0:00:06]} Nxe8 {[%emt 0:00:04]} 22. Be3 {[%emt 0:00:03]} Bxd4 {[%emt 0:01:12]} 23. Bxd4 {[%emt 0:00:03]} Nd6 {[%emt 0:08:33]} 24. Qf2 {[%emt 0:06:00]} Qf5 {[%emt 0:03:47]} 25. Qe3 {[%emt 0:01:12]} Be4 {[%emt 0:02:37]} 26. Qf4 {[%emt 0:00:30]} Qxf4 {[%emt 0:00:14]} 27. gxf4 {[%emt 0:00:02]} f6 {[%emt 0:00:06]} 28. Bf2 {[%emt 0:00:36]} Kf7 {[%emt 0:00:38]} 29. Ne2 {[%emt 0:00:28]} Nf5 {[%emt 0:02:17]} 30. Nd4 {[%emt 0:00:25]} Nxd4 {[%emt 0:00:44]} 31. Bxd4 {[%emt 0:00:06]} Ke6 {[%emt 0:00:03]} 32. Kf2 {[%emt 0:00:14]} Kf5 {[%emt 0:00:04]} 33. Be3 Bb1 {[%emt 0:01:31]} 34. a3 {[%emt 0:06:24]} Ke4 {[%emt 0:00:04]} 35. Bd2 {[%emt 0:00:10]} Ba2 {[%emt 0:01:14]} 36. b4 {[%emt 0:00:08]} Kd3 {[%emt 0:00:04]} 37. Ke1 {[%emt 0:00:10]} Bb3 {[%emt 0:01:33]} 38. Bc1 {[%emt 0:01:33]} Kc3 {[%emt 0:02:56]} 39. Be3 {[%emt 0:00:13]} d4 {[%emt 0:00:54]} 40. Bf2 {[%emt 0:00:23]} Bc2 {[%emt 0:00:16]} 41. Bg1 {[%emt 0:00:09]} g5 {[%emt 0:01:39]} 42. Bf2 {[%emt 0:00:40]} gxf4 {[%emt 0:01:35]} 43. Bh4 {[%emt 0:00:02]} f5 {[%emt 0:00:04]} 44. Bf6 {[%emt 0:00:09]} Be4 {[%emt 0:00:10]} 45. Be5 {[%emt 0:00:09]} f3 {[%emt 0:00:05]} 46. h4 {[%emt 0:00:35]} Kc4 {[%emt 0:01:05]} 47. Bb8 {[%emt 0:00:25]} d3 {[%emt 0:01:32]} 0-1

[Event "17th Delhi GM Open 2019"]
[Site "Delhi"]
[Date "2019.01.10"]
[Round "3"]
[White "Shailesh, Dravid"]
[Black "Mosadeghpour, Masoud"]
[Result "0-1"]
[ECO "B65"]
[WhiteElo "2334"]
[BlackElo "2517"]
[Annotator "RC"]
[PlyCount "62"]
[EventDate "2019.01.09"]
[EventType "swiss"]
[EventCountry "IND"]
[SourceTitle "playchess.com"]
[Source "ChessBase"]
[SourceQuality "1"]
[TimeControl "5400+30"]

1. e4 {[%emt 0:00:00]} c5 {[%emt 0:00:00]} 2. Nf3 {[%emt 0:00:30]} d6 {[%emt 0:00:30]} 3. d4 {[%emt 0:00:30]} cxd4 {[%emt 0:00:30]} 4. Nxd4 {[%emt 0:00:30]} Nf6 {[%emt 0:00:30]} 5. Nc3 {[%emt 0:00:30]} Nc6 {[%emt 0:00:01]} 6. Bg5 {[%emt 0:00:00]} e6 {[%emt 0:06:05]} 7. Qd2 {[%emt 0:00:00]} Be7 {[%emt 0:01:06]} 8. O-O-O {[%emt 0:00:00]} O-O {[%emt 0:00:14]} 9. f4 {[%emt 0:00:10]} Nxd4 {[%emt 0:00:34]} 10. Qxd4 {[%emt 0:00:08]} Qa5 {[%emt 0:00:04]} 11. Bc4 {[%emt 0:03:40]} e5 {[%emt 0:00:59]} 12. Qd2 {[%emt 0:01:44]} Qc5 {[%emt 0:09:58]} 13. Bb3 {[%emt 0:11:03]} Bg4 {[%emt 0:02:20]} 14. Rde1 {[%emt 0:01:21]} Be6 {[%emt 0:23:07]} 15. f5 {[%emt 0:03:16]} Bxb3 {[%emt 0:06:28]} 16. axb3 {[%emt 0:00:09]} Rfc8 {[%emt 0:03:28]} 17. g4 {[%emt 0:08:41]} Rc6 {[%emt 0:12:54]} 18. Bxf6 {[%emt 0:05:22]} Bxf6 {[%emt 0:00:38]} 19. Qd5 {[%emt 0:01:47]} Qf2 {[%emt 0:03:57]} 20. Qd3 {[%emt 0:04:25]} Rac8 {[%emt 0:02:42]} 21. Re2 {[%emt 0:01:06]} Qc5 {[%emt 0:06:27]} 22. h4 {[%emt 0:07:34]} Qa5 {[%emt 0:02:35]} 23. Qb5 {[%emt 0:10:40]} Qa1+ {[%emt 0:00:18]} 24. Nb1 {[%emt 0:00:08]} h6 {[%emt 0:02:08]} 25. Qxb7 {[%emt 0:08:54]} Qa5 {[%emt 0:04:29]} 26. b4 {[%emt 0:00:24]} Qa4 {[%emt 0:04:00]} 27. Na3 {[%emt 0:00:09]} a6 {[%emt 0:04:24]} 28. b5 {[%emt 0:00:30]} axb5 {[%emt 0:00:11]} 29. Qxb5 {[%emt 0:05:03]} Rxc2+ {[%emt 0:00:05]} 30. Rxc2 {[%emt 0:00:03]} Rxc2+ {[%emt 0:00:04]} 31. Kb1 {[%emt 0:00:02]} Qxe4 {[%emt 0:00:09]} 0-1

[Event "17th Delhi GM Open 2019"]
[Site "Delhi"]
[Date "2019.01.10"]
[Round "3"]
[White "Sarwat, Walaa"]
[Black "Rahman, Ziaur"]
[Result "0-1"]
[ECO "B06"]
[WhiteElo "2265"]
[BlackElo "2470"]
[Annotator "ChessBase"]
[PlyCount "114"]
[EventDate "2019.01.09"]
[EventType "swiss"]
[EventCountry "IND"]
[SourceTitle "playchess.com"]
[Source "ChessBase"]
[SourceQuality "1"]
[TimeControl "5400+30"]

1. e4 {[%emt 0:01:38]} g6 {[%emt 0:00:55]} 2. d4 {[%emt 0:00:55]} Bg7 {[%emt 0:00:06]} 3. Nf3 {[%emt 0:00:40]} d6 {[%emt 0:00:09]} 4. Nc3 {[%emt 0:00:55]} a6 {[%emt 0:00:39]} 5. Be3 {[%emt 0:00:57]} b5 {[%emt 0:01:04]} 6. Qd2 {[%emt 0:00:58]} Bb7 {[%emt 0:01:08]} 7. Bd3 {[%emt 0:04:05]} Nd7 {[%emt 0:00:54]} 8. a4 {[%emt 0:08:05]} b4 {[%emt 0:01:16]} 9. Ne2 {[%emt 0:00:40]} a5 {[%emt 0:07:27]} 10. c3 {[%emt 0:01:17]} Ngf6 {[%emt 0:01:19]} 11. Ng3 {[%emt 0:03:39]} bxc3 {[%emt 0:06:15]} 12. bxc3 {[%emt 0:05:11]} Qc8 {[%emt 0:08:01]} 13. h3 {[%emt 0:11:48]} Ba6 {[%emt 0:00:55]} 14. O-O {[%emt 0:01:35]} O-O {[%emt 0:00:20]} 15. Bxa6 {[%emt 0:02:10]} Qxa6 {[%emt 0:02:00]} 16. Bh6 {[%emt 0:01:05]} e6 {[%emt 0:03:18]} 17. Bxg7 {[%emt 0:01:53]} Kxg7 {[%emt 0:00:05]} 18. e5 {[%emt 0:09:22]} Ng8 {[%emt 0:00:14]} 19. h4 {[%emt 0:04:49]} h6 {[%emt 0:04:40]} 20. Rfe1 {[%emt 0:03:20]} d5 {[%emt 0:01:55]} 21. Nh2 {[%emt 0:04:14]} Rab8 {[%emt 0:01:19]} 22. h5 {[%emt 0:06:17]} Nb6 {[%emt 0:03:15]} 23. hxg6 {[%emt 0:04:39]} fxg6 {[%emt 0:00:26]} 24. Reb1 {[%emt 0:02:07]} Qc8 {[%emt 0:04:08]} 25. Qe2 {[%emt 0:00:52]} Qd7 {[%emt 0:00:59]} 26. Qc2 {[%emt 0:02:59]} Qe7 {[%emt 0:01:19]} 27. Qe2 {[%emt 0:03:10]} h5 {[%emt 0:03:29]} 28. Nf3 {[%emt 0:02:01]} Nh6 {[%emt 0:03:35]} 29. Qe3 {[%emt 0:00:53]} Rbe8 {[%emt 0:02:27]} 30. Qg5 {[%emt 0:01:32]} Rb8 {[%emt 0:00:00]} 31. Qe3 {[%emt 0:00:00]} Rbe8 {[%emt 0:01:00]} 32. Qg5 Qxg5 {[%emt 0:00:19]} 33. Nxg5 {[%emt 0:01:30]} Ng4 {[%emt 0:00:40]} 34. Nh3 {[%emt 0:00:47]} Kh6 {[%emt 0:06:28]} 35. Rb5 {[%emt 0:01:18]} Nc4 {[%emt 0:00:10]} 36. Rc5 {[%emt 0:00:34]} Rb8 {[%emt 0:01:47]} 37. Rxc7 {[%emt 0:03:38]} Rb2 {[%emt 0:01:40]} 38. Re7 {[%emt 0:04:53]} Nxf2 {[%emt 0:03:04]} 39. Rf1 {[%emt 0:00:33]} Ne3 {[%emt 0:05:17]} 40. Rxf2 {[%emt 0:01:40]} Rb1+ {[%emt 0:00:04]} 41. Nf1 {[%emt 0:00:28]} Rxf1+ {[%emt 0:00:10]} 42. Rxf1 {[%emt 0:00:24]} Rxf1+ {[%emt 0:00:06]} 43. Kh2 {[%emt 0:00:12]} Rc1 {[%emt 0:02:58]} 44. Rxe6 {[%emt 0:01:07]} Ng4+ {[%emt 0:00:40]} 45. Kg3 {[%emt 0:00:21]} Rxc3+ {[%emt 0:00:03]} 46. Kf4 {[%emt 0:00:57]} Rd3 {[%emt 0:01:28]} 47. Ng1 {[%emt 0:00:18]} Ne3 {[%emt 0:01:52]} 48. Nf3 {[%emt 0:00:27]} Nxg2+ {[%emt 0:00:09]} 49. Kg3 {[%emt 0:00:49]} Ne1 {[%emt 0:00:08]} 50. Kf2 {[%emt 0:00:20]} Nxf3 {[%emt 0:00:12]} 51. Rd6 {[%emt 0:00:13]} Nxd4 {[%emt 0:00:41]} 52. Rxd5 {[%emt 0:00:28]} Rf3+ {[%emt 0:00:04]} 53. Kg2 {[%emt 0:00:27]} Rf4 {[%emt 0:00:04]} 54. Rxa5 {[%emt 0:00:08]} Re4 {[%emt 0:00:36]} 55. Rc5 {[%emt 0:01:22]} Ne6 {[%emt 0:00:06]} 56. Ra5 {[%emt 0:00:26]} Kg5 {[%emt 0:00:09]} 57. Kf3 {[%emt 0:00:17]} Kf5 {[%emt 0:00:10]} 0-1

[Event "17th Delhi GM Open 2019"]
[Site "Delhi"]
[Date "2019.01.10"]
[Round "3"]
[White "Pimpalkhare Vedant"]
[Black "Czebe, Attila"]
[Result "0-1"]
[ECO "A06"]
[WhiteElo "1986"]
[BlackElo "2418"]
[Annotator "ChessBase"]
[PlyCount "58"]
[EventDate "2019.01.09"]
[EventType "swiss"]
[EventCountry "IND"]
[SourceTitle "playchess.com"]
[Source "ChessBase"]
[SourceQuality "1"]
[TimeControl "5400+30"]

1. Nf3 {[%emt 0:00:00]} g6 {[%emt 0:01:08]} 2. g3 {[%emt 0:01:03]} Bg7 {[%emt 0:00:05]} 3. Bg2 {[%emt 0:00:09]} e5 {[%emt 0:00:48]} 4. d3 {[%emt 0:01:17]} d5 {[%emt 0:00:07]} 5. O-O {[%emt 0:01:37]} Ne7 {[%emt 0:00:06]} 6. Nbd2 {[%emt 0:01:45]} O-O {[%emt 0:00:33]} 7. c4 {[%emt 0:02:05]} c6 {[%emt 0:01:12]} 8. Rb1 {[%emt 0:00:53]} a5 {[%emt 0:05:22]} 9. b3 {[%emt 0:01:06]} Na6 {[%emt 0:00:26]} 10. a3 {[%emt 0:05:53]} h6 {[%emt 0:04:48]} 11. b4 {[%emt 0:04:08]} axb4 {[%emt 0:00:14]} 12. axb4 {[%emt 0:00:02]} Be6 {[%emt 0:00:21]} 13. Qc2 {[%emt 0:09:40]} b5 {[%emt 0:01:21]} 14. Rd1 {[%emt 0:09:03]} bxc4 {[%emt 0:05:23]} 15. dxc4 {[%emt 0:01:16]} Bf5 {[%emt 0:01:35]} 16. e4 {[%emt 0:10:19]} dxe4 {[%emt 0:00:24]} 17. Nh4 {[%emt 0:00:03]} e3 {[%emt 0:09:42]} 18. Nxf5 {[%emt 0:00:33]} Nxf5 {[%emt 0:01:11]} 19. Nf3 {[%emt 0:03:57]} exf2+ {[%emt 0:00:15]} 20. Kxf2 {[%emt 0:00:43]} Qe7 {[%emt 0:00:17]} 21. c5 {[%emt 0:06:39]} e4 {[%emt 0:11:41]} 22. Re1 {[%emt 0:05:54]} Rfe8 {[%emt 0:00:43]} 23. Bh3 {[%emt 0:06:08]} Qe6 {[%emt 0:06:14]} 24. Kg1 {[%emt 0:02:24]} Nc7 {[%emt 0:22:45]} 25. Re2 {[%emt 0:07:50]} Qd5 {[%emt 0:03:20]} 26. Rd2 {[%emt 0:02:23]} Nd4 {[%emt 0:01:43]} 27. Nxd4 {[%emt 0:00:35]} Bxd4+ {[%emt 0:00:12]} 28. Rxd4 {[%emt 0:01:01]} Qxd4+ {[%emt 0:00:07]} 29. Kh1 {[%emt 0:00:06]} Qd3 {[%emt 0:03:51]} 0-1

[Event "17th Delhi GM Open 2019"]
[Site "Delhi"]
[Date "2019.01.13"]
[Round "7"]
[White "Sammed Jaykumar, Shete"]
[Black "Lokesh, N.."]
[Result "1-0"]
[ECO "C42"]
[WhiteElo "2395"]
[BlackElo "2133"]
[Annotator "NA"]
[PlyCount "53"]
[EventDate "2019.01.09"]
[EventType "swiss"]
[EventCountry "IND"]
[SourceTitle "playchess.com"]
[Source "ChessBase"]
[SourceQuality "1"]
[TimeControl "5400+30"]

1. e4 {[%emt 0:00:00]} e5 {[%emt 0:00:00]} 2. Nf3 {[%emt 0:00:00]} Nf6 {[%emt 0:00:00]} 3. Nxe5 {[%emt 0:00:00]} d6 {[%emt 0:00:13]} 4. Nf3 {[%emt 0:00:18]} Nxe4 {[%emt 0:00:30]} 5. Bd3 {[%emt 0:00:30]} Nc5 {[%emt 0:00:30]} 6. Be2 {[%emt 0:00:30]} d5 {[%emt 0:00:30]} 7. d4 {[%emt 0:00:30]} Ne6 {[%emt 0:00:30]} 8. O-O {[%emt 0:00:30]} Bd6 {[%emt 0:00:30]} 9. c4 {[%emt 0:00:30]} dxc4 {[%emt 0:19:32]} 10. Bxc4 {[%emt 0:01:31]} O-O {[%emt 0:00:08]} 11. Nc3 {[%emt 0:06:12]} c6 {[%emt 0:11:29]} 12. d5 {[%emt 0:00:30]} cxd5 {[%emt 0:00:30]} 13. Qxd5 {[%emt 0:01:23]} Nc6 {[%emt 0:14:29]} 14. Rd1 {[%emt 0:00:30]} Bc5 {[%emt 0:00:30]} 15. Qh5 {[%emt 0:00:30]} Qa5 {[%emt 0:00:30]} 16. Nd5 {[%emt 0:00:30]} Bxf2+ {[%emt 0:00:30]} 17. Kh1 {[%emt 0:00:30]} Qc5 {[%emt 0:00:30]} 18. b3 {[%emt 0:00:30]} Ncd4 {[%emt 0:00:30]} 19. Ng5 {[%emt 0:00:30]} Nxg5 {[%emt 0:00:30]} 20. Bxg5 {[%emt 0:00:30]} Nf5 {[%emt 0:00:30]} 21. Ne7+ {[%emt 0:00:30]} Kh8 {[%emt 0:00:30]} 22. Rd5 {[%emt 0:00:30]} Qb6 {[%emt 0:00:30]} 23. Nxf5 {[%emt 0:00:30]} g6 {[%emt 0:00:30]} 24. Qh6 {[%emt 0:00:30]} Bxf5 {[%emt 0:00:30]} 25. Rxf5 {[%emt 0:00:30]} f6 {[%emt 0:00:30]} 26. Rf3 {[%emt 0:00:30]} Bd4 {[%emt 0:00:30]} 27. Raf1 {[%emt 0:00:30]} 1-0

[Event "17th Delhi GM Open 2019"]
[Site "Delhi"]
[Date "2019.01.13"]
[Round "7"]
[White "Kurbonboeva, Sarvinoz"]
[Black "Thipsay, Praveen M"]
[Result "1/2-1/2"]
[ECO "E68"]
[WhiteElo "2214"]
[BlackElo "2405"]
[Annotator "NA"]
[PlyCount "185"]
[EventDate "2019.01.09"]
[EventType "swiss"]
[EventCountry "IND"]
[SourceTitle "playchess.com"]
[Source "ChessBase"]
[SourceQuality "1"]
[TimeControl "5400+30"]

1. d4 {[%emt 0:00:00]} Nf6 {[%emt 0:00:00]} 2. c4 {[%emt 0:00:00]} g6 {[%emt 0:00:09]} 3. g3 {[%emt 0:00:00]} Bg7 {[%emt 0:00:19]} 4. Bg2 {[%emt 0:00:02]} d6 {[%emt 0:00:11]} 5. Nc3 {[%emt 0:00:10]} O-O {[%emt 0:00:10]} 6. Nf3 {[%emt 0:00:10]} Nbd7 {[%emt 0:00:08]} 7. O-O {[%emt 0:00:07]} e5 {[%emt 0:00:26]} 8. e4 {[%emt 0:00:07]} a6 {[%emt 0:01:11]} 9. Qc2 {[%emt 0:02:18]} Rb8 {[%emt 0:01:33]} 10. Rd1 {[%emt 0:01:28]} exd4 {[%emt 0:00:07]} 11. Nxd4 {[%emt 0:00:10]} Re8 {[%emt 0:00:26]} 12. h3 {[%emt 0:01:56]} Ne5 {[%emt 0:01:38] E68: King's Indian: Fianchetto: 6...Nbd7 7 0-0 e5 8 e4} (12... c6 13. Bf4 Ne5 14. c5 Bf8 15. cxd6 Bxd6 16. Bxe5 Rxe5 17. Nf3 Qe7 18. Nxe5 Bxe5 19. Ne2 Be6 20. Rac1 {1-0 (35) Kovalenko,I (2700)-Maze,S (2582) Berlin 2015}) 13. b3 {[%emt 0:03:48]} c5 {[%emt 0:01:12]} 14. Nde2 {[%emt 0:01:41]} b5 {[%emt 0:00:17]} 15. f4 {[%emt 0:09:39]} Ned7 {[%emt 0:01:06]} 16. e5 {[%emt 0:21:17]} dxe5 {[%emt 0:34:20]} 17. fxe5 {[%emt 0:00:04]} Rxe5 $146 {[%emt 0:01:13]} ({Predecessor:} 17... Nh5 18. g4 Bxe5 19. gxh5 b4 20. hxg6 hxg6 21. Bd5 Kg7 22. Bf4 {½-½ (22) Egger Mancilla,J (2355)-Bjornsson,S Duisburg 1992}) 18. Bf4 {[%emt 0:00:07]} Qf8 {[%emt 0:04:29]} 19. cxb5 {[%emt 0:10:41]} axb5 {[%emt 0:00:15]} 20. Rab1 {[%emt 0:00:15]} g5 {[%emt 0:27:14]} 21. Bxe5 {[%emt 0:02:06]} Nxe5 {[%emt 0:00:07]} 22. Nd5 {[%emt 0:02:12]} g4 {[%emt 0:02:38]} 23. h4 {[%emt 0:05:54]} Nf3+ {[%emt 0:00:39]} 24. Kh1 {[%emt 0:00:40]} Nh5 {[%emt 0:14:23]} 25. Qe4 {[%emt 0:07:10]} f5 {[%emt 0:03:04]} 26. Qe7 {[%emt 0:04:13]} Bb7 {[%emt 0:01:28]} 27. Qxf8+ {[%emt 0:08:17]} Bxf8 {[%emt 0:00:08]} 28. Ndf4 {[%emt 0:01:39]} Nf6 {[%emt 0:00:08]} 29. Rbc1 {[%emt 0:00:43]} Ne4 {[%emt 0:00:24]} 30. Rf1 {[%emt 0:00:06]} Rd8 {[%emt 0:02:07]} 31. Rxf3 {[%emt 0:04:36]} gxf3 {[%emt 0:00:17]} 32. Bxf3 {[%emt 0:00:01]} Nxg3+ {[%emt 0:00:49]} 33. Kg2 {[%emt 0:00:02]} Nxe2 {[%emt 0:00:42]} 34. Nxe2 {[%emt 0:00:02]} Bxf3+ {[%emt 0:00:05]} 35. Kxf3 {[%emt 0:00:03]} Rd2 {[%emt 0:00:43]} 36. Nc3 {[%emt 0:02:22]} b4 {[%emt 0:00:49]} 37. Na4 {[%emt 0:00:02]} Rxa2 {[%emt 0:00:04]} 38. Nxc5 {[%emt 0:00:03]} Rb2 {[%emt 0:00:08]} 39. Rc4 {[%emt 0:00:49]} Kf7 {[%emt 0:00:38]} 40. Kf4 {[%emt 0:00:40]} Kg6 {[%emt 0:00:51]} 41. h5+ {[%emt 0:06:43]} Kxh5 {[%emt 0:00:06]} 42. Nd7 {[%emt 0:00:01]} Be7 {[%emt 0:00:28]} 43. Kxf5 {[%emt 0:00:11]} Rxb3 {[%emt 0:00:07]} 44. Ne5 {[%emt 0:00:08]} Bd6 {[%emt 0:01:47]} 45. Rc1 {[%emt 0:02:45]} Rh3 {[%emt 0:00:37]} 46. Nf7 {[%emt 0:00:28]} Rf3+ {[%emt 0:01:06]} 47. Ke6 {[%emt 0:00:01]} Bf4 {[%emt 0:00:07]} 48. Rc5+ {[%emt 0:02:29]} Kg4 {[%emt 0:00:50]} 49. Rc4 {[%emt 0:01:39]} Re3+ {[%emt 0:00:04]} 50. Kf6 {[%emt 0:00:04]} b3 {[%emt 0:00:48]} 51. Rb4 {[%emt 0:01:17]} h5 {[%emt 0:00:26]} 52. Nh6+ {[%emt 0:00:20]} Kf3 {[%emt 0:00:25]} 53. Nf5 {[%emt 0:00:05]} Be5+ {[%emt 0:00:42]} 54. Kg5 {[%emt 0:01:49]} Rd3 {[%emt 0:00:08]} 55. Nh4+ {[%emt 0:00:25]} Ke2 {[%emt 0:01:09]} 56. Rb5 {[%emt 0:01:36]} Bh8 {[%emt 0:01:16]} 57. Ng6 {[%emt 0:00:32]} Rg3+ {[%emt 0:00:09]} 58. Kxh5 {[%emt 0:00:13]} Bf6 {[%emt 0:00:32]} 59. Nf4+ {[%emt 0:01:13]} Kd2 {[%emt 0:00:06]} 60. Nd5 {[%emt 0:00:42]} Bd4 {[%emt 0:00:53]} 61. Kh4 {[%emt 0:00:45]} Rd3 {[%emt 0:00:33]} 62. Nb4 {[%emt 0:01:00]} Bf2+ {[%emt 0:01:00]} 63. Kg4 {[%emt 0:00:04]} Rd7 {[%emt 0:00:31]} 64. Nc6 {[%emt 0:01:00]} Kc3 {[%emt 0:00:12]} 65. Ne5 {[%emt 0:00:26]} Rd6 {[%emt 0:00:30]} 66. Kf4 {[%emt 0:00:31]} Bd4 67. Nd3 {[%emt 0:00:39]} Ba7 {[%emt 0:00:38]} 68. Nc1 {[%emt 0:00:37]} b2 {[%emt 0:01:14]} 69. Na2+ {[%emt 0:00:01]} Kc2 {[%emt 0:00:04]} 70. Nb4+ {[%emt 0:00:02]} Kc1 {[%emt 0:00:27]} 71. Na2+ {[%emt 0:00:10]} Kb1 {[%emt 0:00:05]} 72. Nb4 {[%emt 0:00:44]} Rd4+ {[%emt 0:00:47]} 73. Kf3 {[%emt 0:00:48]} Rd7 {[%emt 0:00:37]} 74. Ke2 {[%emt 0:00:22]} Bd4 {[%emt 0:00:09]} 75. Kd2 {[%emt 0:00:48]} Bg7+ {[%emt 0:00:22]} 76. Nd3 {[%emt 0:00:08]} Ka2 {[%emt 0:00:23]} 77. Ra5+ {[%emt 0:00:45]} Kb3 {[%emt 0:00:08]} 78. Rb5+ {[%emt 0:00:04]} Ka4 {[%emt 0:00:20]} 79. Rb8 {[%emt 0:00:45]} Ka3 {[%emt 0:00:21]} 80. Kc2 {[%emt 0:00:47]} Rc7+ {[%emt 0:01:00]} 81. Kb1 {[%emt 0:00:01]} Rf7 {[%emt 0:00:59]} 82. Ra8+ {[%emt 0:01:34]} Kb3 {[%emt 0:00:04]} 83. Rb8+ {[%emt 0:00:20]} Kc3 {[%emt 0:00:03]} 84. Nxb2 {[%emt 0:00:32]} Be5 {[%emt 0:00:32]} 85. Rb6 {[%emt 0:00:30]} Bd4 {[%emt 0:00:08]} 86. Rb8 {[%emt 0:00:12]} Rf6 {[%emt 0:00:29]} 87. Na4+ {[%emt 0:00:16]} Kd2 {[%emt 0:00:27]} 88. Ka2 {[%emt 0:00:22]} Rf1 {[%emt 0:01:07]} 89. Rb1 {[%emt 0:00:03]} Rf7 {[%emt 0:01:09]} 90. Kb3 {[%emt 0:00:27]} Rb7+ {[%emt 0:00:15]} 91. Ka2 {[%emt 0:00:02]} Rc7 $11 {[%emt 0:00:05]} 92. Rb4 {[%emt 0:01:07]} Bg7 {[%emt 0:01:39]} 93. Kb3 {[%emt 0:00:20]} 1/2-1/2

[Event "17th Delhi GM Open 2019"]
[Site "Delhi"]
[Date "2019.01.14"]
[Round "8"]
[White "Thipsay, Praveen M"]
[Black "Kulkarni, Vinayak"]
[Result "1-0"]
[ECO "A04"]
[WhiteElo "2405"]
[BlackElo "2207"]
[Annotator "NA"]
[PlyCount "59"]
[EventDate "2019.01.09"]
[EventType "swiss"]
[EventCountry "IND"]
[SourceTitle "playchess.com"]
[Source "ChessBase"]
[SourceQuality "1"]
[TimeControl "5400+30"]

1. Nf3 {[%emt 0:00:00]} c5 {[%emt 0:00:00]} 2. g3 {[%emt 0:00:14]} Nc6 {[%emt 0:00:16]} 3. Bg2 {[%emt 0:00:06]} g6 {[%emt 0:00:23]} 4. O-O {[%emt 0:01:26]} Bg7 {[%emt 0:00:31]} 5. e4 {[%emt 0:01:00]} e5 6. d3 {[%emt 0:07:25]} Nge7 {[%emt 0:01:35]} 7. Nbd2 {[%emt 0:01:24]} O-O {[%emt 0:01:21]} 8. a3 {[%emt 0:00:07]} d6 {[%emt 0:01:48]} 9. Rb1 {[%emt 0:00:09]} b6 {[%emt 0:05:03]} 10. b4 {[%emt 0:00:07]} f6 {[%emt 0:01:18]} 11. c3 {[%emt 0:01:03]} Be6 {[%emt 0:01:53]} 12. d4 {[%emt 0:01:23]} cxd4 {[%emt 0:09:34]} 13. cxd4 {[%emt 0:00:13]} Nxd4 {[%emt 0:00:40]} 14. Nxd4 {[%emt 0:00:10]} exd4 {[%emt 0:00:10]} 15. Bb2 {[%emt 0:06:55]} d5 {[%emt 0:04:09]} 16. Re1 {[%emt 0:07:23]} Bf7 {[%emt 0:13:13]} 17. Nb3 {[%emt 0:12:03]} Rc8 {[%emt 0:12:26]} 18. Nxd4 {[%emt 0:01:34]} dxe4 {[%emt 0:04:37]} 19. Bxe4 {[%emt 0:01:43]} f5 {[%emt 0:09:48]} 20. Bf3 {[%emt 0:11:10]} Nd5 {[%emt 0:06:25]} 21. Ne6 {[%emt 0:07:24]} Bxe6 {[%emt 0:00:14]} 22. Rxe6 {[%emt 0:00:06]} Nc7 {[%emt 0:04:12]} 23. Rd6 {[%emt 0:01:06]} Qg5 {[%emt 0:04:17]} 24. Bxg7 {[%emt 0:08:33]} Kxg7 {[%emt 0:00:13]} 25. h4 {[%emt 0:06:16]} Qh6 {[%emt 0:02:23]} 26. Qd4+ {[%emt 0:00:06]} Kg8 {[%emt 0:00:53]} 27. Qd1 {[%emt 0:00:54]} Kg7 {[%emt 0:00:07]} 28. Qd4+ {[%emt 0:00:06]} Kg8 29. Qc4+ {[%emt 0:01:18]} Kh8 {[%emt 0:01:47]} 30. Rd7 {[%emt 0:00:35]} 1-0

[Event "17th Delhi GM Open 2019"]
[Site "Delhi"]
[Date "2019.01.14"]
[Round "8"]
[White "Sardana, Rishi"]
[Black "Praveen Kumar C"]
[Result "0-1"]
[ECO "B90"]
[WhiteElo "2398"]
[BlackElo "2233"]
[Annotator "NA"]
[PlyCount "78"]
[EventDate "2019.01.09"]
[EventType "swiss"]
[EventCountry "IND"]
[SourceTitle "playchess.com"]
[Source "ChessBase"]
[SourceQuality "1"]
[TimeControl "5400+30"]

1. e4 c5 {[%emt 0:02:03]} 2. Nf3 {[%emt 0:00:00]} d6 {[%emt 0:00:09]} 3. d4 {[%emt 0:00:04]} cxd4 {[%emt 0:00:07]} 4. Nxd4 {[%emt 0:00:03]} Nf6 {[%emt 0:00:06]} 5. Nc3 {[%emt 0:00:04]} a6 {[%emt 0:00:09]} 6. h3 {[%emt 0:00:14]} e5 {[%emt 0:00:26]} 7. Nde2 {[%emt 0:00:08]} h5 {[%emt 0:00:13]} 8. g3 {[%emt 0:01:20]} Be7 {[%emt 0:05:16]} 9. Bg2 {[%emt 0:01:23]} b5 {[%emt 0:07:14]} 10. Nd5 {[%emt 0:01:12]} Bb7 {[%emt 0:00:26]} 11. Nec3 {[%emt 0:02:02]} Nbd7 {[%emt 0:02:33]} 12. Nxe7 {[%emt 0:01:27]} Qxe7 {[%emt 0:00:10]} 13. Bg5 {[%emt 0:00:16]} Nc5 {[%emt 0:06:18]} 14. h4 {[%emt 0:17:15]} b4 {[%emt 0:15:00]} 15. Nd5 {[%emt 0:02:08]} Bxd5 {[%emt 0:00:44]} 16. exd5 {[%emt 0:00:02]} Qd7 {[%emt 0:04:35]} 17. O-O {[%emt 0:10:46]} Nfe4 {[%emt 0:05:35]} 18. Be3 {[%emt 0:01:59]} f5 {[%emt 0:00:16]} 19. a3 {[%emt 0:06:33]} Rb8 {[%emt 0:01:44]} 20. Qe1 {[%emt 0:10:19]} Qb5 {[%emt 0:04:12]} 21. axb4 {[%emt 0:22:59]} Qxb4 {[%emt 0:03:20]} 22. Qxb4 {[%emt 0:01:01]} Rxb4 {[%emt 0:00:07]} 23. b3 {[%emt 0:05:48]} O-O {[%emt 0:03:49]} 24. Bxe4 {[%emt 0:03:20]} Nxe4 {[%emt 0:00:15]} 25. Rxa6 {[%emt 0:03:42]} Rb5 {[%emt 0:02:11]} 26. Rd1 {[%emt 0:03:16]} f4 {[%emt 0:01:31]} 27. gxf4 {[%emt 0:00:02]} exf4 {[%emt 0:00:05]} 28. Bd4 {[%emt 0:02:33]} Rxd5 {[%emt 0:03:00]} 29. c4 {[%emt 0:01:12]} Rdf5 {[%emt 0:00:15]} 30. Ra7 {[%emt 0:01:09]} R5f7 {[%emt 0:01:02]} 31. b4 {[%emt 0:01:43]} f3 {[%emt 0:00:58]} 32. Rxf7 {[%emt 0:00:52]} Kxf7 {[%emt 0:00:43]} 33. b5 {[%emt 0:00:29]} Ke6 {[%emt 0:00:12]} 34. Re1 {[%emt 0:01:04]} Rf4 {[%emt 0:00:13]} 35. Re3 {[%emt 0:00:32]} Kd7 {[%emt 0:00:42]} 36. Bxg7 {[%emt 0:00:27]} Rg4+ {[%emt 0:00:57]} 37. Kf1 {[%emt 0:00:09]} Rxh4 {[%emt 0:00:32]} 38. Rxf3 {[%emt 0:00:51]} Nd2+ {[%emt 0:00:07]} 39. Kg2 {[%emt 0:00:21]} Nxf3 {[%emt 0:00:09]} 0-1